[Event "MCR rapid mládeže 2023 U16"]
[Site "Harachov, Czech Republic"]
[Date "2023.09.10"]
[Round "7.34"]
[White "Strihavka, Petr"]
[Black "Trejbal, Jindrich"]
[Result "0-1"]
[TimeControl "20min+5s/move"]
[WhiteElo "1205"]
[BlackElo "1088"]

1. e4 {[%clk 00:20:08]} {[%emt 00:00:02]} e5 {[%clk 00:20:07]} {[%emt
00:00:04]} 2. Nf3 {[%clk 00:20:11]} {[%emt 00:00:02]} Nf6 {[%clk 00:19:54]}
{[%emt 00:00:18]} 3. Nc3 {[%clk 00:20:13]} {[%emt 00:00:02]} Bb4 {[%clk
00:19:55]} {[%emt 00:00:05]} 4. Bc4 {[%clk 00:20:06]} {[%emt 00:00:10]} O-O
{[%clk 00:19:24]} {[%emt 00:00:37]} 5. O-O {[%clk 00:20:07]} {[%emt 00:00:04]}
d6 {[%clk 00:18:41]} {[%emt 00:00:48]} 6. h3 {[%clk 00:20:04]} {[%emt
00:00:07]} Bxc3 {[%clk 00:17:37]} {[%emt 00:01:09]} 7. dxc3 {[%clk 00:20:06]}
{[%emt 00:00:03]} Nxe4 {[%clk 00:17:08]} {[%emt 00:00:35]} 8. Bd3 {[%clk
00:19:50]} {[%emt 00:00:21]} Nc5 {[%clk 00:16:42]} {[%emt 00:00:32]} 9. Bc4
{[%clk 00:18:56]} {[%emt 00:00:58]} Be6 {[%clk 00:16:09]} {[%emt 00:00:39]} 10.
Bxe6 {[%clk 00:18:43]} {[%emt 00:00:17]} fxe6 {[%clk 00:16:10]} {[%emt
00:00:05]} 11. Bg5 {[%clk 00:18:42]} {[%emt 00:00:05]} Qe8 {[%clk 00:15:29]}
{[%emt 00:00:45]} 12. Re1 {[%clk 00:17:20]} {[%emt 00:01:26]} Nbd7 {[%clk
00:14:09]} {[%emt 00:01:27]} 13. b4 {[%clk 00:17:13]} {[%emt 00:00:12]} Na4
{[%clk 00:12:13]} {[%emt 00:02:01]} 14. Re4 {[%clk 00:15:27]} {[%emt 00:01:49]}
Nxc3 {[%clk 00:11:39]} {[%emt 00:00:41]} 15. Qd3 {[%clk 00:15:15]} {[%emt
00:00:16]} Nxe4 {[%clk 00:11:18]} {[%emt 00:00:27]} 16. Qxe4 {[%clk 00:15:17]}
{[%emt 00:00:03]} d5 {[%clk 00:10:15]} {[%emt 00:01:08]} 17. Qg4 {[%clk
00:14:48]} {[%emt 00:00:31]} Nf6 {[%clk 00:08:40]} {[%emt 00:01:43]} 18. Bxf6
{[%clk 00:14:13]} {[%emt 00:00:40]} Rxf6 {[%clk 00:08:44]} {[%emt 00:00:02]} 19.
Nxe5 {[%clk 00:14:12]} {[%emt 00:00:05]} Rf5 {[%clk 00:08:12]} {[%emt
00:00:37]} 20. Nf3 {[%clk 00:14:00]} {[%emt 00:00:17]} Qh5 {[%clk 00:07:18]}
{[%emt 00:01:00]} 21. Qg3 {[%clk 00:13:47]} {[%emt 00:00:15]} Qg6 {[%clk
00:06:38]} {[%emt 00:00:47]} 22. Qxc7 {[%clk 00:13:38]} {[%emt 00:00:14]} Rxf3
{[%clk 00:06:33]} {[%emt 00:00:10]} 23. Qxb7 {[%clk 00:13:19]} {[%emt
00:00:24]} Raf8 {[%clk 00:06:12]} {[%emt 00:00:26]} 24. Rf1 {[%clk 00:12:56]}
{[%emt 00:00:28]} R3f7 {[%clk 00:05:41]} {[%emt 00:00:36]} 25. Qc6 {[%clk
00:12:36]} {[%emt 00:00:24]} Qh6 {[%clk 00:05:03]} {[%emt 00:00:44]} 26. Qc3
{[%clk 00:12:23]} {[%emt 00:00:17]} Qf6 {[%clk 00:03:35]} {[%emt 00:01:34]} 27.
Qg3 {[%clk 00:12:04]} {[%emt 00:00:24]} Qf4 {[%clk 00:03:29]} {[%emt 00:00:12]}
28. Qa3 {[%clk 00:11:50]} {[%emt 00:00:17]} Qd4 {[%clk 00:02:55]} {[%emt
00:00:39]} 29. Qg3 {[%clk 00:11:33]} {[%emt 00:00:22]} Qxb4 {[%clk 00:02:25]}
{[%emt 00:00:37]} 30. a3 {[%clk 00:11:11]} {[%emt 00:00:27]} Qb8 {[%clk
00:02:13]} {[%emt 00:00:16]} 31. Qe3 {[%clk 00:10:53]} {[%emt 00:00:23]} Qb6
{[%clk 00:02:07]} {[%emt 00:00:12]} 32. Qg3 {[%clk 00:10:33]} {[%emt 00:00:23]}
Qb2 {[%clk 00:02:10]} {[%emt 00:00:03]} 33. Qd3 {[%clk 00:10:16]} {[%emt
00:00:21]} d4 {[%clk 00:01:51]} {[%emt 00:00:26]} 34. f3 {[%clk 00:08:55]}
{[%emt 00:01:25]} Qc3 {[%clk 00:01:45]} {[%emt 00:00:11]} 35. Qd1 {[%clk
00:08:12]} {[%emt 00:00:46]} Qe3+ {[%clk 00:01:47]} {[%emt 00:00:05]} 36. Kh1
{[%clk 00:07:46]} {[%emt 00:00:30]} e5 {[%clk 00:01:39]} {[%emt 00:00:15]} 37.
Re1 {[%clk 00:07:35]} {[%emt 00:00:16]} Qf4 {[%clk 00:01:41]} {[%emt 00:00:03]}
38. Re4 {[%clk 00:07:18]} {[%emt 00:00:22]} Qxe4 {[%clk 00:01:40]} {[%emt
00:00:06]} 39. fxe4 {[%clk 00:07:16]} {[%emt 00:00:06]} Rf1+ {[%clk 00:01:43]}
{[%emt 00:00:02]} 40. Qxf1 {[%clk 00:07:19]} {[%emt 00:00:01]} Rxf1+ {[%clk
00:01:47]} {[%emt 00:00:02]} 41. Kh2 {[%clk 00:07:22]} {[%emt 00:00:02]} Re1
{[%clk 00:01:48]} {[%emt 00:00:04]} 42. c4 {[%clk 00:07:23]} {[%emt 00:00:05]}
dxc3 {[%clk 00:01:51]} {[%emt 00:00:01]} 43. g4 {[%clk 00:07:26]} {[%emt
00:00:02]} Rxe4 {[%clk 00:01:53]} {[%emt 00:00:03]} 0-1

[Event "MCR rapid mládeže 2023 U16"]
[Site "Harachov, Czech Republic"]
[Date "2023.09.10"]
[Round "7.35"]
[White "Bukovskij, Dmitri"]
[Black "Zika, Miroslav"]
[Result "0-1"]
[TimeControl "20min+5s/move"]
[WhiteElo "1291"]
[BlackElo "1199"]

1. c4 {[%clk 00:19:55]} {[%emt 00:00:21]} e5 {[%clk 00:20:05]} {[%emt
00:00:09]} 2. g3 {[%clk 00:19:59]} {[%emt 00:00:01]} Nf6 {[%clk 00:20:06]}
{[%emt 00:00:04]} 3. Bg2 {[%clk 00:20:02]} {[%emt 00:00:01]} Nc6 {[%clk
00:20:10]} {[%emt 00:00:02]} 4. e3 {[%clk 00:20:06]} {[%emt 00:00:01]} Bc5
{[%clk 00:19:59]} {[%emt 00:00:15]} 5. Ne2 {[%clk 00:20:09]} {[%emt 00:00:02]}
d6 {[%clk 00:20:01]} {[%emt 00:00:04]} 6. d4 {[%clk 00:20:11]} {[%emt
00:00:03]} exd4 {[%clk 00:20:04]} {[%emt 00:00:02]} 7. exd4 {[%clk 00:20:14]}
{[%emt 00:00:02]} Bb6 {[%clk 00:19:59]} {[%emt 00:00:09]} 8. O-O {[%clk
00:20:11]} {[%emt 00:00:09]} O-O {[%clk 00:20:02]} {[%emt 00:00:02]} 9. Nbc3
{[%clk 00:20:11]} {[%emt 00:00:05]} Bg4 {[%clk 00:19:55]} {[%emt 00:00:12]} 10.
Bg5 {[%clk 00:19:58]} {[%emt 00:00:18]} Rb8 {[%clk 00:19:26]} {[%emt 00:00:33]}
11. h3 {[%clk 00:19:53]} {[%emt 00:00:09]} Bh5 {[%clk 00:19:16]} {[%emt
00:00:15]} 12. g4 {[%clk 00:19:48]} {[%emt 00:00:11]} Bg6 {[%clk 00:19:15]}
{[%emt 00:00:06]} 13. Nd5 {[%clk 00:19:00]} {[%emt 00:00:53]} Re8 {[%clk
00:18:34]} {[%emt 00:00:45]} 14. Bxf6 {[%clk 00:19:01]} {[%emt 00:00:04]} gxf6
{[%clk 00:18:34]} {[%emt 00:00:06]} 15. Nxb6 {[%clk 00:18:35]} {[%emt
00:00:31]} axb6 {[%clk 00:18:29]} {[%emt 00:00:09]} 16. Re1 {[%clk 00:18:18]}
{[%emt 00:00:23]} Nb4 {[%clk 00:17:14]} {[%emt 00:01:20]} 17. Rc1 {[%clk
00:15:44]} {[%emt 00:02:38]} Nd3 {[%clk 00:17:10]} {[%emt 00:00:09]} 18. Rc3
{[%clk 00:15:14]} {[%emt 00:00:35]} Nxe1 {[%clk 00:17:07]} {[%emt 00:00:08]} 19.
Qxe1 {[%clk 00:15:18]} {[%emt 00:00:01]} c6 {[%clk 00:17:01]} {[%emt 00:00:11]}
20. Qd2 {[%clk 00:14:41]} {[%emt 00:00:42]} Re7 {[%clk 00:16:48]} {[%emt
00:00:19]} 21. Nf4 {[%clk 00:13:34]} {[%emt 00:01:11]} Qe8 {[%clk 00:16:24]}
{[%emt 00:00:29]} 22. Nxg6 {[%clk 00:13:31]} {[%emt 00:00:08]} fxg6 {[%clk
00:16:24]} {[%emt 00:00:06]} 23. Qf4 {[%clk 00:13:24]} {[%emt 00:00:11]} Rd8
{[%clk 00:15:53]} {[%emt 00:00:37]} 24. Qxf6 {[%clk 00:12:16]} {[%emt
00:01:13]} Rf7 {[%clk 00:15:53]} {[%emt 00:00:04]} 25. Qh4 {[%clk 00:12:02]}
{[%emt 00:00:16]} Rdd7 {[%clk 00:15:36]} {[%emt 00:00:26]} 26. Re3 {[%clk
00:11:52]} {[%emt 00:00:15]} Rde7 {[%clk 00:15:08]} {[%emt 00:00:32]} 27. Rxe7
{[%clk 00:11:02]} {[%emt 00:00:56]} Qxe7 {[%clk 00:15:11]} {[%emt 00:00:01]} 28.
Qg3 {[%clk 00:10:58]} {[%emt 00:00:08]} Qe1+ {[%clk 00:15:03]} {[%emt
00:00:14]} 29. Kh2 {[%clk 00:11:02]} {[%emt 00:00:01]} Qxf2 {[%clk 00:15:06]}
{[%emt 00:00:03]} 30. Qxd6 {[%clk 00:11:02]} {[%emt 00:00:05]} Qf4+ {[%clk
00:15:08]} {[%emt 00:00:02]} 31. Qxf4 {[%clk 00:11:00]} {[%emt 00:00:07]} Rxf4
{[%clk 00:15:10]} {[%emt 00:00:03]} 32. d5 {[%clk 00:10:49]} Rxc4 {[%clk
00:15:02]} {[%emt 00:00:30]} 33. b3 {[%emt 00:00:16]} Rc2 34. dxc6 {[%clk
00:10:50]} bxc6 {[%clk 00:14:54]} {[%emt 00:00:09]} 35. Kg3 {[%clk 00:10:47]}
{[%emt 00:00:04]} c5 {[%clk 00:14:56]} {[%emt 00:00:07]} 36. a4 {[%clk
00:10:26]} {[%emt 00:00:27]} Rc3+ {[%clk 00:14:53]} {[%emt 00:00:07]} 37. Kf4
{[%clk 00:10:25]} {[%emt 00:00:06]} Kg7 {[%clk 00:14:50]} {[%emt 00:00:09]} 38.
Bd5 {[%clk 00:10:27]} {[%emt 00:00:02]} Rxh3 {[%clk 00:14:51]} {[%emt
00:00:04]} 39. Ke5 {[%clk 00:10:24]} {[%emt 00:00:08]} h5 {[%clk 00:14:24]}
{[%emt 00:00:32]} 40. gxh5 {[%clk 00:10:20]} {[%emt 00:00:09]} Rxh5+ {[%clk
00:14:26]} {[%emt 00:00:03]} 41. Ke4 {[%clk 00:10:20]} {[%emt 00:00:05]} g5
{[%clk 00:13:51]} {[%emt 00:00:40]} 42. Be6 {[%clk 00:10:13]} {[%emt 00:00:12]}
Kf6 {[%clk 00:13:40]} {[%emt 00:00:16]} 43. Bc8 {[%clk 00:10:09]} {[%emt
00:00:10]} Rh4+ {[%clk 00:13:28]} {[%emt 00:00:16]} 44. Kd5 {[%clk 00:10:12]}
{[%emt 00:00:02]} Rb4 {[%clk 00:13:28]} {[%emt 00:00:05]} 45. Kc6 {[%clk
00:09:55]} {[%emt 00:00:23]} g4 {[%clk 00:13:28]} {[%emt 00:00:05]} 46. Bxg4
{[%clk 00:09:17]} {[%emt 00:00:43]} Rxb3 {[%clk 00:12:03]} {[%emt 00:01:31]} 47.
Bd1 {[%clk 00:09:08]} {[%emt 00:00:13]} Rb4 {[%clk 00:11:13]} {[%emt 00:00:55]}
48. a5 {[%clk 00:08:29]} {[%emt 00:00:44]} bxa5 {[%clk 00:11:08]} {[%emt
00:00:09]} 49. Kxc5 {[%clk 00:08:32]} {[%emt 00:00:02]} Ke5 {[%clk 00:11:11]}
{[%emt 00:00:03]} 50. Bc2 {[%clk 00:08:26]} {[%emt 00:00:10]} Kf4 {[%clk
00:11:13]} {[%emt 00:00:03]} 51. Bd3 {[%clk 00:08:12]} {[%emt 00:00:13]} Ke3
{[%clk 00:11:07]} {[%emt 00:00:17]} 52. Bc4 {[%clk 00:08:10]} {[%emt 00:00:07]}
Kd2 {[%clk 00:11:07]} {[%emt 00:00:06]} 53. Bd5 {[%clk 00:08:04]} {[%emt
00:00:10]} Kc3 {[%clk 00:11:02]} {[%emt 00:00:10]} 54. Be6 {[%clk 00:08:05]}
{[%emt 00:00:03]} a4 {[%clk 00:10:58]} {[%emt 00:00:11]} 55. Ba2 {[%clk
00:08:02]} {[%emt 00:00:07]} a3 {[%clk 00:11:00]} {[%emt 00:00:03]} 56. Be6
{[%clk 00:07:58]} {[%emt 00:00:09]} Rb2 {[%clk 00:11:00]} {[%emt 00:00:05]} 57.
Kd5 {[%emt 00:00:21]} 0-1

[Event "MCR rapid mládeže 2023 U16"]
[Site "Harachov, Czech Republic"]
[Date "2023.09.10"]
[Round "7.36"]
[White "Burel, Jan"]
[Black "Kozusnik, Jan"]
[Result "0-1"]
[TimeControl "20min+5s/move"]
[WhiteElo "1046"]
[BlackElo "1399"]

1. e4 {[%clk 00:20:08]} {[%emt 00:00:01]} d5 {[%clk 00:20:09]} {[%emt
00:00:01]} 2. exd5 {[%clk 00:20:10]} {[%emt 00:00:03]} Nf6 {[%clk 00:20:13]} 3.
d4 {[%clk 00:20:12]} {[%emt 00:00:04]} Nxd5 {[%clk 00:20:16]} {[%emt 00:00:02]}
4. c4 {[%clk 00:20:13]} {[%emt 00:00:03]} Nb6 {[%clk 00:20:20]} {[%emt
00:00:02]} 5. Nc3 {[%clk 00:20:15]} {[%emt 00:00:03]} Bf5 {[%clk 00:20:01]}
{[%emt 00:00:24]} 6. Nf3 {[%clk 00:19:56]} {[%emt 00:00:24]} e6 {[%clk
00:19:58]} {[%emt 00:00:08]} 7. Be2 {[%clk 00:19:48]} {[%emt 00:00:13]} Be7
{[%clk 00:19:04]} {[%emt 00:00:58]} 8. Be3 {[%clk 00:19:43]} {[%emt 00:00:11]}
O-O {[%clk 00:18:51]} {[%emt 00:00:18]} 9. O-O {[%clk 00:19:29]} {[%emt
00:00:19]} N8d7 {[%clk 00:18:17]} {[%emt 00:00:39]} 10. Re1 {[%clk 00:18:55]}
{[%emt 00:00:40]} Nf6 {[%clk 00:17:26]} {[%emt 00:00:55]} 11. Rc1 {[%clk
00:18:08]} {[%emt 00:00:52]} c6 {[%clk 00:17:00]} {[%emt 00:00:31]} 12. Qd2
{[%clk 00:17:45]} {[%emt 00:00:28]} Bb4 {[%clk 00:16:22]} {[%emt 00:00:44]} 13.
a3 {[%clk 00:17:43]} {[%emt 00:00:06]} Ne4 {[%clk 00:15:50]} {[%emt 00:00:36]}
14. Qd1 {[%clk 00:16:50]} {[%emt 00:00:59]} Nxc3 {[%clk 00:15:34]} {[%emt
00:00:19]} 15. bxc3 {[%clk 00:16:30]} {[%emt 00:00:28]} Bxa3 {[%clk 00:15:24]}
{[%emt 00:00:14]} 16. Ra1 {[%clk 00:16:24]} {[%emt 00:00:10]} Be7 {[%clk
00:15:20]} {[%emt 00:00:10]} 17. c5 {[%clk 00:13:20]} {[%emt 00:03:09]} Nd5
{[%clk 00:15:01]} {[%emt 00:00:24]} 18. Bd2 {[%clk 00:13:04]} {[%emt 00:00:20]}
Bf6 {[%clk 00:14:09]} {[%emt 00:00:58]} 19. c4 {[%clk 00:12:56]} {[%emt
00:00:13]} Ne7 {[%clk 00:14:02]} {[%emt 00:00:11]} 20. Be3 {[%clk 00:12:27]}
{[%emt 00:00:34]} Ng6 {[%clk 00:12:19]} {[%emt 00:01:48]} 21. Bd3 {[%clk
00:11:59]} {[%emt 00:00:34]} Bxd3 {[%clk 00:11:58]} {[%emt 00:00:26]} 22. Qxd3
{[%clk 00:12:01]} {[%emt 00:00:02]} e5 {[%clk 00:11:53]} {[%emt 00:00:10]} 23.
Rab1 {[%clk 00:10:52]} {[%emt 00:01:14]} b6 {[%clk 00:10:52]} {[%emt 00:01:06]}
24. d5 {[%clk 00:10:39]} {[%emt 00:00:18]} cxd5 {[%clk 00:10:16]} {[%emt
00:00:41]} 25. cxd5 {[%clk 00:10:39]} {[%emt 00:00:05]} bxc5 {[%clk 00:09:39]}
{[%emt 00:00:42]} 26. Bxc5 {[%clk 00:10:40]} {[%emt 00:00:03]} Re8 {[%clk
00:09:24]} {[%emt 00:00:20]} 27. Qd2 {[%clk 00:10:33]} {[%emt 00:00:12]} e4
{[%clk 00:08:59]} {[%emt 00:00:31]} 28. Nd4 {[%clk 00:10:02]} {[%emt 00:00:36]}
Qxd5 {[%clk 00:08:53]} {[%emt 00:00:10]} 29. Nb3 {[%clk 00:09:31]} {[%emt
00:00:33]} Qxd2 {[%clk 00:08:29]} {[%emt 00:00:33]} 30. Nxd2 {[%clk 00:09:33]}
{[%emt 00:00:02]} Bc3 {[%clk 00:08:29]} {[%emt 00:00:05]} 31. Re2 {[%clk
00:08:55]} {[%emt 00:00:40]} Nf4 {[%clk 00:08:20]} {[%emt 00:00:18]} 32. Rxe4
{[%clk 00:08:52]} {[%emt 00:00:08]} Bxd2 {[%clk 00:08:20]} {[%emt 00:00:04]} 33.
Rxe8+ {[%clk 00:08:54]} {[%emt 00:00:03]} Rxe8 {[%clk 00:08:22]} {[%emt
00:00:04]} 34. Be3 {[%clk 00:08:27]} {[%emt 00:00:30]} Bxe3 {[%clk 00:08:10]}
{[%emt 00:00:19]} 35. fxe3 {[%clk 00:08:30]} {[%emt 00:00:02]} Nd5 {[%clk
00:08:11]} {[%emt 00:00:05]} 36. Ra1 {[%clk 00:08:24]} {[%emt 00:00:10]} Re7
{[%clk 00:07:45]} {[%emt 00:00:31]} 37. Rd1 {[%clk 00:08:19]} {[%emt 00:00:09]}
Nc7 {[%clk 00:07:38]} {[%emt 00:00:12]} 38. Ra1 {[%clk 00:08:14]} {[%emt
00:00:10]} Nd5 {[%clk 00:07:08]} {[%emt 00:00:36]} 39. Rd1 {[%clk 00:08:11]}
{[%emt 00:00:07]} Nf6 {[%clk 00:07:07]} {[%emt 00:00:06]} 40. Rd3 {[%clk
00:07:49]} {[%emt 00:00:28]} h6 {[%clk 00:06:58]} {[%emt 00:00:14]} 41. h3
{[%clk 00:07:51]} {[%emt 00:00:02]} a5 {[%clk 00:05:54]} {[%emt 00:01:10]} 42.
g4 {[%clk 00:07:38]} {[%emt 00:00:18]} a4 {[%clk 00:05:30]} {[%emt 00:00:29]}
43. Ra3 {[%clk 00:07:41]} {[%emt 00:00:02]} Ra7 {[%clk 00:05:33]} {[%emt
00:00:02]} 44. Kf2 {[%clk 00:07:43]} {[%emt 00:00:03]} Ne4+ {[%clk 00:05:26]}
{[%emt 00:00:11]} 45. Kf3 {[%clk 00:07:43]} {[%emt 00:00:04]} Nd6 {[%clk
00:05:28]} {[%emt 00:00:04]} 46. Kf4 {[%clk 00:07:34]} {[%emt 00:00:15]} Nb5
{[%clk 00:05:28]} {[%emt 00:00:05]} 47. Ra2 {[%clk 00:07:18]} {[%emt 00:00:20]}
a3 {[%clk 00:05:30]} {[%emt 00:00:04]} 48. h4 {[%clk 00:07:20]} {[%emt
00:00:03]} Nc3 {[%clk 00:05:20]} {[%emt 00:00:14]} 49. g5 {[%clk 00:06:59]}
{[%emt 00:00:27]} Nxa2 {[%clk 00:05:15]} {[%emt 00:00:10]} 50. g6 {[%clk
00:07:01]} {[%emt 00:00:03]} Nc3 {[%clk 00:05:04]} {[%emt 00:00:15]} 51. gxf7+
{[%clk 00:07:03]} {[%emt 00:00:03]} Kxf7 {[%clk 00:05:07]} {[%emt 00:00:03]} 52.
h5 {[%clk 00:07:05]} {[%emt 00:00:03]} a2 {[%clk 00:05:09]} {[%emt 00:00:03]}
53. e4 {[%clk 00:07:08]} {[%emt 00:00:02]} a1=Q {[%clk 00:05:10]} {[%emt
00:00:04]} 54. e5 {[%clk 00:07:07]} {[%emt 00:00:06]} Qf1+ {[%clk 00:05:09]}
{[%emt 00:00:04]} 55. Ke3 {[%clk 00:07:08]} {[%emt 00:00:05]} Qe2+ {[%clk
00:04:55]} {[%emt 00:00:16]} 56. Kd4 {[%clk 00:07:07]} {[%emt 00:00:09]} Qd2+
{[%clk 00:04:47]} {[%emt 00:00:14]} 57. Kc4 {[%clk 00:07:04]} {[%emt 00:00:04]}
Rc7+ {[%clk 00:04:49]} {[%emt 00:00:06]} 58. Kb3 {[%clk 00:07:06]} {[%emt
00:00:04]} Ne4 {[%clk 00:04:37]} {[%emt 00:00:17]} 59. e6+ {[%clk 00:07:04]}
{[%emt 00:00:07]} Kxe6 {[%clk 00:04:39]} {[%emt 00:00:02]} 60. Ka4 {[%clk
00:07:02]} {[%emt 00:00:07]} Qb2 {[%clk 00:04:36]} {[%emt 00:00:07]} 0-1

[Event "MCR rapid mládeže 2023 U16"]
[Site "Harachov, Czech Republic"]
[Date "2023.09.10"]
[Round "7.38"]
[White "Tykalova, Barbora"]
[Black "Zadrapova, Gabriela"]
[Result "1-0"]
[TimeControl "20min+5s/move"]
[WhiteElo "1121"]
[BlackElo "1206"]

1. e4 {[%clk 00:20:07]} {[%emt 00:00:02]} e5 {[%clk 00:20:01]} {[%emt
00:00:09]} 2. Nf3 {[%clk 00:20:06]} {[%emt 00:00:07]} Nc6 {[%clk 00:19:58]}
{[%emt 00:00:07]} 3. Bc4 {[%clk 00:20:03]} {[%emt 00:00:08]} Bc5 {[%clk
00:19:21]} {[%emt 00:00:42]} 4. d3 {[%clk 00:19:48]} {[%emt 00:00:21]} Nf6
{[%clk 00:18:42]} {[%emt 00:00:44]} 5. Bg5 {[%clk 00:19:37]} {[%emt 00:00:16]}
O-O {[%clk 00:18:29]} {[%emt 00:00:18]} 6. Nc3 {[%clk 00:19:29]} {[%emt
00:00:11]} h6 {[%clk 00:18:15]} {[%emt 00:00:21]} 7. Bh4 {[%clk 00:19:25]}
{[%emt 00:00:08]} d6 {[%clk 00:17:57]} {[%emt 00:00:24]} 8. Nd5 {[%clk
00:19:23]} {[%emt 00:00:07]} Kh8 {[%clk 00:16:17]} {[%emt 00:01:45]} 9. Nxf6
{[%clk 00:19:06]} {[%emt 00:00:21]} gxf6 {[%clk 00:16:17]} {[%emt 00:00:05]} 10.
Qd2 {[%clk 00:18:57]} {[%emt 00:00:14]} Kh7 {[%clk 00:15:32]} {[%emt 00:00:50]}
11. O-O-O {[%clk 00:18:42]} {[%emt 00:00:19]} a6 {[%clk 00:14:48]} {[%emt
00:00:50]} 12. c3 {[%clk 00:17:35]} {[%emt 00:01:07]} b5 {[%clk 00:14:41]}
{[%emt 00:00:13]} 13. Bd5 {[%clk 00:17:33]} {[%emt 00:00:12]} Bb7 {[%clk
00:14:25]} {[%emt 00:00:20]} 14. Bxc6 {[%clk 00:17:14]} {[%emt 00:00:24]} Bxc6
{[%clk 00:14:21]} {[%emt 00:00:09]} 15. Ne1 {[%clk 00:17:00]} {[%emt 00:00:17]}
Rb8 {[%clk 00:14:02]} {[%emt 00:00:26]} 16. Nc2 {[%clk 00:16:48]} {[%emt
00:00:16]} Rg8 {[%clk 00:13:37]} {[%emt 00:00:31]} 17. g3 {[%clk 00:16:00]}
{[%emt 00:00:52]} d5 {[%clk 00:12:57]} {[%emt 00:00:46]} 18. f3 {[%clk
00:15:35]} {[%emt 00:00:28]} dxe4 {[%clk 00:12:43]} {[%emt 00:00:21]} 19. fxe4
{[%clk 00:15:25]} {[%emt 00:00:15]} Qd6 {[%clk 00:12:16]} {[%emt 00:00:31]} 20.
Ne3 {[%clk 00:14:38]} {[%emt 00:00:45]} Bxe3 {[%clk 00:10:55]} {[%emt
00:01:34]} 21. Qxe3 {[%clk 00:14:21]} {[%emt 00:00:21]} b4 {[%clk 00:10:15]}
{[%emt 00:00:47]} 22. c4 {[%clk 00:14:10]} {[%emt 00:00:14]} b3 {[%clk
00:09:37]} {[%emt 00:00:44]} 23. a3 {[%clk 00:14:03]} {[%emt 00:00:13]} Qd4
{[%clk 00:08:10]} {[%emt 00:01:31]} 24. Qxd4 {[%clk 00:13:37]} {[%emt
00:00:32]} exd4 {[%clk 00:08:10]} {[%emt 00:00:05]} 25. Bxf6 {[%clk 00:12:55]}
{[%emt 00:00:45]} Kg6 {[%clk 00:07:35]} {[%emt 00:00:41]} 26. Bxd4 {[%clk
00:12:45]} {[%emt 00:00:16]} Rge8 {[%clk 00:07:04]} {[%emt 00:00:35]} 27. Rhf1
{[%clk 00:12:22]} {[%emt 00:00:25]} Rbd8 {[%clk 00:06:36]} {[%emt 00:00:35]} 28.
Rf6+ {[%clk 00:11:29]} {[%emt 00:00:58]} Kh5 {[%clk 00:06:27]} {[%emt
00:00:16]} 29. Be3 {[%clk 00:11:06]} {[%emt 00:00:26]} Bb7 {[%clk 00:06:07]}
{[%emt 00:00:26]} 30. h3 {[%clk 00:10:57]} {[%emt 00:00:11]} Rh8 {[%clk
00:05:48]} {[%emt 00:00:26]} 31. Rxf7 {[%clk 00:10:09]} {[%emt 00:00:52]} c6
{[%clk 00:05:36]} {[%emt 00:00:20]} 32. Rxb7 {[%clk 00:09:46]} {[%emt
00:00:26]} Rhg8 {[%clk 00:05:16]} {[%emt 00:00:25]} 33. g4+ {[%clk 00:09:27]}
{[%emt 00:00:24]} Kg6 {[%clk 00:05:09]} {[%emt 00:00:12]} 34. Rxb3 {[%clk
00:09:19]} {[%emt 00:00:14]} Rdf8 {[%clk 00:04:55]} {[%emt 00:00:19]} 35. Rb6
{[%clk 00:08:37]} {[%emt 00:00:45]} Rc8 {[%clk 00:04:43]} {[%emt 00:00:19]} 36.
Rxa6 {[%clk 00:08:20]} {[%emt 00:00:23]} Rgf8 {[%clk 00:04:44]} {[%emt
00:00:02]} 37. d4 {[%clk 00:05:34]} {[%emt 00:02:51]} Kh7 {[%clk 00:04:17]}
{[%emt 00:00:32]} 38. d5 {[%clk 00:04:53]} {[%emt 00:00:47]} cxd5 {[%clk
00:04:16]} {[%emt 00:00:06]} 39. Rxh6+ {[%clk 00:04:45]} {[%emt 00:00:13]} Kg7
{[%clk 00:04:10]} {[%emt 00:00:10]} 40. Rxd5 {[%clk 00:04:45]} {[%emt
00:00:06]} Rf3 {[%clk 00:04:01]} {[%emt 00:00:13]} 41. Rd7+ {[%clk 00:04:47]}
{[%emt 00:00:04]} Rf7 {[%clk 00:03:52]} {[%emt 00:00:13]} 42. Rxf7+ {[%clk
00:04:29]} {[%emt 00:00:24]} Kxf7 {[%clk 00:03:53]} {[%emt 00:00:03]} 43. g5
{[%clk 00:04:28]} {[%emt 00:00:07]} Rxc4+ {[%clk 00:03:56]} {[%emt 00:00:03]}
44. Kd2 {[%clk 00:04:31]} {[%emt 00:00:01]} Rxe4 {[%clk 00:03:57]} {[%emt
00:00:05]} 45. g6+ {[%clk 00:04:35]} {[%emt 00:00:01]} Kg7 {[%clk 00:04:00]}
{[%emt 00:00:52]} 46. Bg5 {[%clk 00:04:29]} {[%emt 00:00:09]} Re6 {[%clk
00:03:50]} {[%emt 00:00:14]} 47. Rh7+ {[%clk 00:04:30]} {[%emt 00:00:05]} Kxg6
{[%clk 00:03:47]} {[%emt 00:00:08]} 48. Rh6+ {[%clk 00:04:33]} {[%emt
00:00:02]} Kf7 {[%clk 00:03:47]} {[%emt 00:00:05]} 49. Rxe6 {[%clk 00:04:36]}
{[%emt 00:00:02]} Kxe6 {[%clk 00:03:49]} {[%emt 00:00:03]} 50. a4 {[%emt
00:00:09]} 1-0